fUST/lending_fUST_20250219
["ID","MTS","AMOUNT","RATE_DAILY","PERIOD"]
[353638578,1739976641430,-500.0,0.00014438,2]
[353638580,1739976641441,-1500.91,0.00014438,2]
[353638582,1739976641450,-4615.22,0.00014438,2]
[353638584,1739976641459,-151.0,0.000145,2]
[353638586,1739976641469,-151.0,0.000145,2]
[353638588,1739976641478,-684.58,0.0001452,2]
[353638590,1739976641488,-500.0,0.0001452,2]
[353638592,1739976641497,-500.0,0.0001452,2]
[353638594,1739976641508,-500.0,0.0001452,2]
[353638596,1739976641519,-500.0,0.0001452,2]
[353638599,1739976641529,-1145.44,0.0001452,2]
[353638600,1739976641538,-620.41,0.0001452,2]
[353638602,1739976641548,-4294.48,0.0001452,2]
[353638604,1739976641557,-500.0,0.0001452,2]
[353638606,1739976641567,-1002.89,0.0001452,2]
[353638608,1739976641580,-1007.92,0.0001452,2]
[353638610,1739976641590,-839.2,0.0001452,2]
[353638612,1739976641600,-500.0,0.0001452,2]
[353638614,1739976641610,-2859.74,0.0001452,2]
[353638616,1739976641620,-12576.75,0.0001452,2]
[353638618,1739976641630,-500.0,0.0001452,2]
[353638620,1739976641639,-958.93,0.0001452,2]
[353638622,1739976641649,-500.0,0.0001452,2]
[353638624,1739976641659,-683.31,0.0001452,2]
[353638626,1739976641669,-500.0,0.0001452,2]
[353638628,1739976641678,-1500.91,0.0001452,2]
[353638631,1739976641688,-4615.22,0.0001452,2]
[353638633,1739976641697,-151.0,0.000146,2]
[353638635,1739976641707,-151.0,0.000146,2]
[353638636,1739976641716,-684.58,0.00014602,2]
[353638638,1739976641726,-500.0,0.00014602,2]
[353638641,1739976641735,-500.0,0.00014602,2]
[353638643,1739976641745,-500.0,0.00014602,2]
[353638644,1739976641755,-500.0,0.00014602,2]
[353638647,1739976641767,-1145.44,0.00014602,2]
[353638648,1739976641776,-4294.48,0.00014602,2]
[353638650,1739976641786,-500.0,0.00014602,2]
[353638653,1739976641796,-1002.89,0.00014602,2]
[353638654,1739976641806,-1007.92,0.00014602,2]
[353638656,1739976641815,-839.2,0.00014602,2]
[353638659,1739976641825,-500.0,0.00014602,2]
[353638661,1739976641835,-2859.74,0.00014602,2]
[353638663,1739976641845,-12576.75,0.00014602,2]
[353638665,1739976641854,-440.68,0.00014602,2]
[353638667,1739976641864,-958.93,0.00014602,2]
[353638669,1739976641874,-330.49248043,0.00014602,2]
[353638671,1739976641884,-683.31,0.00014602,2]
[353638673,1739976641894,-500.0,0.00014602,2]
[353638675,1739976641903,-1500.91,0.00014602,2]
[353638677,1739976641914,-4615.22,0.00014602,2]
[353638679,1739976641923,-162.11653626,0.0001463,2]
[353638681,1739976641933,-534.775,0.0001463,2]
[353638683,1739976641942,-684.58,0.00014684,2]
[353638685,1739976641951,-500.0,0.00014684,2]
[353638687,1739976641960,-500.0,0.00014684,2]
[353638689,1739976641970,-500.0,0.00014684,2]
[353638691,1739976641979,-500.0,0.00014684,2]
[353638693,1739976641988,-1145.44,0.00014684,2]
[353638694,1739976641997,-4294.48,0.00014684,2]
[353638696,1739976642007,-500.0,0.00014684,2]
[353638698,1739976642018,-1002.89,0.00014684,2]
[353638700,1739976642028,-1007.92,0.00014684,2]
[353638702,1739976642037,-839.2,0.00014684,2]
[353638705,1739976642046,-500.0,0.00014684,2]
[353638707,1739976642056,-2859.74,0.00014684,2]
[353638708,1739976642066,-12576.75,0.00014684,2]
[353638711,1739976642075,-958.93,0.00014684,2]
[353638713,1739976642085,-683.31,0.00014684,2]
[353638715,1739976642095,-542.12,0.00014684,2]
[353638716,1739976642104,-1500.91,0.00014684,2]
[353638719,1739976642114,-4615.22,0.00014684,2]
[353638721,1739976642124,-151.0,0.000147,2]
[353638723,1739976642133,-151.0,0.000147,2]
[353638725,1739976642143,-151.0,0.000147,2]
[353638726,1739976642153,-206.0,0.0001473,2]
[353638729,1739976642162,-684.58,0.00014767,2]
[353638730,1739976642171,-500.0,0.00014767,2]
[353638732,1739976642181,-500.0,0.00014767,2]
[353638735,1739976642191,-500.0,0.00014767,2]
[353638737,1739976642200,-500.0,0.00014767,2]
[353638739,1739976642210,-1145.44,0.00014767,2]
[353638740,1739976642219,-4294.48,0.00014767,2]
[353638742,1739976642229,-403.60895834,0.00014767,2]
[353638744,1739976642239,-1002.89,0.00014767,2]
[353638747,1739976642249,-1007.92,0.00014767,2]
[353638749,1739976642259,-839.2,0.00014767,2]
[353638750,1739976642271,-500.0,0.00014767,2]
[353638752,1739976642280,-2859.74,0.00014767,2]
[353638754,1739976642290,-12576.75,0.00014767,2]
[353638757,1739976642300,-958.93,0.00014767,2]
[353638758,1739976642309,-683.31,0.00014767,2]
[353638761,1739976642320,-1500.91,0.00014767,2]
[353638763,1739976642330,-4615.22,0.00014767,2]
[353638765,1739976642339,-151.0,0.000148,2]
[353638767,1739976642349,-153.36348279,0.00014831,2]
[353638769,1739976642359,-153.36348279,0.00014831,2]
[353638771,1739976642369,-153.36348279,0.00014831,2]
[353638783,1739976642477,-153.36348279,0.00014831,2]
[353638785,1739976642488,-153.36348279,0.00014831,2]
[353638787,1739976642497,-153.36348279,0.00014831,2]
[353638789,1739976642507,-153.36,0.00014831,2]
[353638792,1739976642519,-152.53437279,0.00014831,2]
[353638793,1739976642528,-152.53437279,0.00014831,2]
[353638795,1739976642537,-152.53437279,0.00014831,2]
[353638797,1739976642546,-152.53437279,0.00014831,2]
[353638799,1739976642555,-152.53437279,0.00014831,2]
[353638802,1739976642565,-152.53437279,0.00014831,2]
[353638803,1739976642577,-152.53437279,0.00014831,2]
[353638806,1739976642587,-152.53437279,0.00014831,2]
[353638808,1739976642596,-152.53437279,0.00014831,2]
[353638810,1739976642606,-152.53437279,0.00014831,2]
[353638812,1739976642616,-152.53437279,0.00014831,2]
[353638814,1739976642625,-152.53437279,0.00014831,2]
[353638816,1739976642635,-152.53437279,0.00014831,2]
[353638818,1739976642644,-152.53437279,0.00014831,2]
[353638820,1739976642655,-152.53437279,0.00014831,2]
[353638821,1739976642666,-152.53437279,0.00014831,2]
[353638824,1739976642676,-152.53,0.00014831,2]
[353638825,1739976642686,-684.58,0.00014849,2]
[353638827,1739976642695,-500.0,0.00014849,2]
[353638830,1739976642705,-260.77754596,0.00014849,2]
[353638831,1739976642714,-500.0,0.00014849,2]
[353638833,1739976642725,-500.0,0.00014849,2]
[353638835,1739976642734,-1145.44,0.00014849,2]
[353638838,1739976642744,-4294.48,0.00014849,2]
[353638840,1739976642753,-1002.89,0.00014849,2]
[353638842,1739976642765,-1007.92,0.00014849,2]
[353638843,1739976642775,-839.2,0.00014849,2]
[353638845,1739976642785,-500.0,0.00014849,2]
[353638847,1739976642795,-2859.74,0.00014849,2]
[353638850,1739976642804,-12576.75,0.00014849,2]
[353638852,1739976642813,-958.93,0.00014849,2]
[353638854,1739976642823,-683.31,0.00014849,2]
[353638855,1739976642832,-1500.91,0.00014849,2]
[353638858,1739976642842,-4615.22,0.00014849,2]
[353638859,1739976642851,-500.0,0.00014873,2]
[353638861,1739976642860,-500.39970858,0.00014873,2]
[353638863,1739976642870,-155.04287356,0.00014873,2]
[353638865,1739976642880,-152.0319088,0.00014873,2]
[353638867,1739976642889,-635.95312818,0.00014873,2]
[353638869,1739976642898,-200.04975345,0.00014873,2]
[353638871,1739976642908,-500.0,0.00014873,2]
[353638873,1739976642917,-160.04558471,0.00014873,2]
[353638875,1739976642928,-500.0,0.00014873,2]
[353638877,1739976642938,-160.04553107,0.00014873,2]
[353638879,1739976642947,-151.04211176,0.00014873,2]
[353638881,1739976642956,-267.57440324,0.00014873,2]
[353638883,1739976642966,-151.04296995,0.00014873,2]
[353638885,1739976642975,-151.04296996,0.00014873,2]
[353638887,1739976642985,-160.07615822,0.00014873,2]
[353638889,1739976642994,-151.04206937,0.00014873,2]
[353638891,1739976643003,-267.57237439,0.00014873,2]
[353638893,1739976643015,-160.04450174,0.00014873,2]
[353638895,1739976643025,-500.0,0.00014873,2]
[353638897,1739976643035,-500.0,0.00014873,2]
[353638899,1739976643045,-500.0,0.00014873,2]
[353638901,1739976643055,-151.04211177,0.00014873,2]
[353638904,1739976643066,-500.50517202,0.00014873,2]
[353638905,1739976643076,-251.09701182,0.00014873,2]
[353638908,1739976643086,-151.04002065,0.00014873,2]
[353638910,1739976643096,-500.0,0.00014873,2]
[353638911,1739976643105,-160.04457576,0.00014873,2]
[353638914,1739976643115,-151.04302045,0.00014873,2]
[353638916,1739976643125,-267.59026123,0.00014873,2]
[353638917,1739976643135,-500.0,0.00014873,2]
[353638920,1739976643145,-258.5736459,0.00014873,2]
[353638922,1739976643155,-500.0,0.00014873,2]
[353638924,1739976643165,-210.05850305,0.00014873,2]
[353638926,1739976643174,-160.04558452,0.00014873,2]
[353638927,1739976643183,-500.0,0.00014873,2]
[353638929,1739976643193,-151.0,0.000149,2]
[353638931,1739976643203,-151.0,0.000149,2]
[353638934,1739976643213,-426539.106736,0.000149,2]
[353638936,1739976643222,-1015.84456147,0.00014913,2]
[353638937,1739976643232,-684.58,0.00014931,2]
[353638940,1739976643242,-500.0,0.00014931,2]
[353638942,1739976643252,-500.0,0.00014931,2]
[353638944,1739976643263,-1145.44,0.00014931,2]
[353638945,1739976643272,-4294.48,0.00014931,2]
[353638947,1739976643281,-1002.89,0.00014931,2]
[353638950,1739976643291,-1007.92,0.00014931,2]
[353638951,1739976643302,-839.2,0.00014931,2]
[353638953,1739976643311,-500.0,0.00014931,2]
[353638955,1739976643321,-2859.74,0.00014931,2]
[353638957,1739976643331,-12576.75,0.00014931,2]
[353638961,1739976643342,-958.93,0.00014931,2]
[353638964,1739976643351,-683.31,0.00014931,2]
[353638967,1739976643360,-1500.91,0.00014931,2]
[353638970,1739976643371,-4615.22,0.00014931,2]
[353638973,1739976643381,-7438.69753278,0.0001499,2]
[353638976,1739976643391,-151.0,0.00015,2]
[353638979,1739976643400,-151.0,0.00015,2]
[353638982,1739976643410,-420.0,0.00015003,2]
[353638985,1739976643419,-684.58,0.00015013,2]
[353638987,1739976643428,-500.0,0.00015013,2]
[353638989,1739976643438,-280.59745205,0.00015013,2]
[353638994,1739976643448,-1145.44,0.00015013,2]
[353638998,1739976643457,-4294.48,0.00015013,2]
[353639001,1739976643467,-1002.89,0.00015013,2]
[353639003,1739976643476,-1007.92,0.00015013,2]
[353639007,1739976643487,-839.2,0.00015013,2]
[353639011,1739976643496,-500.0,0.00015013,2]
[353639014,1739976643506,-2859.74,0.00015013,2]
[353639017,1739976643518,-12576.75,0.00015013,2]
[353639019,1739976643527,-958.93,0.00015013,2]
[353639021,1739976643538,-683.31,0.00015013,2]
[353639023,1739976643547,-1500.91,0.00015013,2]
[353639025,1739976643557,-4615.22,0.00015013,2]
[353639027,1739976643567,-684.58,0.00015095,2]
[353639029,1739976643579,-500.0,0.00015095,2]
[353639031,1739976643597,-1145.44,0.00015095,2]
[353639033,1739976643608,-4294.48,0.00015095,2]
[353639035,1739976643620,-1002.89,0.00015095,2]
[353639037,1739976643630,-1007.92,0.00015095,2]
[353639039,1739976643640,-839.2,0.00015095,2]
[353639040,1739976643650,-461.82244067,0.00015095,2]
[353639042,1739976643661,-2859.74,0.00015095,2]
[353639044,1739976643671,-12576.75,0.00015095,2]
[353639047,1739976643681,-958.93,0.00015095,2]
[353639049,1739976643690,-683.31,0.00015095,2]
[353639051,1739976643699,-1500.91,0.00015095,2]
[353639053,1739976643709,-4615.22,0.00015095,2]
[353639055,1739976643718,-684.58,0.00015178,2]
[353639057,1739976643728,-608.21642689,0.00015178,2]
[353639059,1739976643738,-1145.44,0.00015178,2]
[353639061,1739976643747,-4294.48,0.00015178,2]
[353639063,1739976643756,-1002.89,0.00015178,2]
[353639065,1739976643766,-1007.92,0.00015178,2]
[353639066,1739976643775,-839.2,0.00015178,2]
[353639068,1739976643785,-2859.74,0.00015178,2]
[353639070,1739976643794,-12576.75,0.00015178,2]
[353639073,1739976643804,-958.93,0.00015178,2]
[353639074,1739976643813,-683.31,0.00015178,2]
[353639077,1739976643823,-1500.91,0.00015178,2]
[353639078,1739976643833,-4615.22,0.00015178,2]
[353639080,1739976643842,-151.0,0.000152,2]
[353639082,1739976643852,-684.58,0.0001526,2]
[353639084,1739976643863,-1145.44,0.0001526,2]
[353639086,1739976643874,-4294.48,0.0001526,2]
[353639089,1739976643884,-1002.89,0.0001526,2]
[353639090,1739976643894,-1007.92,0.0001526,2]
[353639092,1739976643903,-839.2,0.0001526,2]
[353639094,1739976643913,-2859.74,0.0001526,2]
[353639097,1739976643922,-12576.75,0.0001526,2]
[353639099,1739976643932,-958.93,0.0001526,2]
[353639100,1739976643942,-683.31,0.0001526,2]
[353639103,1739976643952,-1500.91,0.0001526,2]
[353639104,1739976643960,-4615.22,0.0001526,2]
[353639107,1739976643970,-151.0,0.000153,2]
[353639109,1739976643980,-151.0,0.000153,2]
[353639111,1739976643990,-684.58,0.00015342,2]
[353639113,1739976643999,-1145.44,0.00015342,2]
[353639115,1739976644008,-4294.48,0.00015342,2]
[353639117,1739976644018,-1002.89,0.00015342,2]
[353639119,1739976644027,-1007.92,0.00015342,2]
[353639122,1739976644036,-839.2,0.00015342,2]
[353639125,1739976644045,-2859.74,0.00015342,2]
[353639128,1739976644055,-12576.75,0.00015342,2]
[353639131,1739976644064,-958.93,0.00015342,2]
[353639135,1739976644074,-683.31,0.00015342,2]
[353639138,1739976644083,-1500.91,0.00015342,2]
[353639141,1739976644092,-4615.22,0.00015342,2]
[353639142,1739976644101,-1000.0,0.00015421,2]
[353639144,1739976644111,-1000.0,0.00015421,2]
[353639146,1739976644120,-1000.0,0.00015421,2]
[353639149,1739976644130,-1000.0,0.00015421,2]
[353639152,1739976644139,-534.55773278,0.00015421,2]
[353639154,1739976644148,-498.60686308,0.00015421,2]
[353639156,1739976644158,-1000.0,0.00015421,2]
[353639159,1739976644168,-1000.0,0.00015421,2]
[353639161,1739976644178,-684.58,0.00015424,2]
[353639163,1739976644188,-1145.44,0.00015424,2]
[353639165,1739976644197,-4294.48,0.00015424,2]
[353639166,1739976644206,-1002.89,0.00015424,2]
[353639169,1739976644216,-1007.92,0.00015424,2]
[353639171,1739976644225,-839.2,0.00015424,2]
[353639172,1739976644235,-2859.74,0.00015424,2]
[353639175,1739976644245,-12576.75,0.00015424,2]
[353639177,1739976644255,-958.93,0.00015424,2]
[353639179,1739976644265,-683.31,0.00015424,2]
[353639181,1739976644274,-1500.91,0.00015424,2]
[353639183,1739976644283,-4615.22,0.00015424,2]
[353639185,1739976644292,-160.0,0.00015504,3]
[353639187,1739976644301,-684.58,0.00015506,2]
[353639189,1739976644310,-1145.44,0.00015506,2]
[353639191,1739976644320,-4294.48,0.00015506,2]
[353639193,1739976644329,-1002.89,0.00015506,2]
[353639195,1739976644339,-1007.92,0.00015506,2]
[353639197,1739976644349,-839.2,0.00015506,2]
[353639199,1739976644359,-2859.74,0.00015506,2]
[353639201,1739976644368,-12576.75,0.00015506,2]
[353639203,1739976644377,-958.93,0.00015506,2]
[353639205,1739976644387,-683.31,0.00015506,2]
[353639207,1739976644396,-1500.91,0.00015506,2]
[353639209,1739976644406,-4615.22,0.00015506,2]
[353639211,1739976644415,-500.0,0.00015534,2]
[353639213,1739976644424,-684.78,0.00015589,2]
[353639215,1739976644434,-1145.56,0.00015589,2]
[353639216,1739976644443,-4294.56,0.00015589,2]
[353639218,1739976644452,-1003.11560056,0.00015589,2]
[353639220,1739976644461,-1008.03,0.00015589,2]
[353639222,1739976644471,-839.25,0.00015589,2]
[353639224,1739976644480,-2859.93,0.00015589,2]
[353639226,1739976644489,-12576.95,0.00015589,2]
[353639228,1739976644499,-958.94,0.00015589,2]
[353639230,1739976644508,-683.48364707,0.00015589,2]
[353639232,1739976644518,-1501.11,0.00015589,2]
[353639234,1739976644527,-151.0,0.000157,2]
[353639237,1739976644537,-151.0,0.000157,2]
[353639238,1739976644546,-169.001014,0.00015775,2]
[353639241,1739976644555,-181.21594715,0.0001596,2]
[353639243,1739976644565,-151.0,0.00016,2]
[353639244,1739976644576,-500.0,0.00016,7]
[353639247,1739976644586,-151.0,0.000161,2]
[353639248,1739976644595,-11968.7550277,0.000162,2]
[353639250,1739976644605,-11968.7550277,0.000162,2]
[353639253,1739976644615,-11968.7550277,0.000162,2]
[353639255,1739976644625,-151.0,0.000163,2]
[353639259,1739976644718,-557.1188801,0.00016356,2]
[353639260,1739976644728,-557.1188801,0.00016356,2]
[353639261,1739976644738,-557.1188801,0.00016356,2]
[353639262,1739976644747,-557.1188801,0.00016356,2]
[353639263,1739976644757,-557.1188801,0.00016356,2]
[353639264,1739976644768,-557.1188801,0.00016356,2]
[353639265,1739976644778,-557.1188801,0.00016356,2]
[353639266,1739976644788,-620.92698607,0.00016421,2]
[353639267,1739976644797,-1582.32671512,0.00016422,2]
[353639268,1739976644806,-504.95281179,0.00016422,2]
[353639269,1739976644816,-1500.0,0.00016422,2]
[353639270,1739976644826,-1500.0,0.00016422,2]
[353639271,1739976644841,-837.36111169,0.00016422,2]
[353639272,1739976644850,-587.0,0.00016442,2]
[353639273,1739976644861,-500.0,0.00016489,2]
[353639274,1739976644870,-151.0,0.000165,2]
[353639275,1739976644880,-500.0,0.000165,7]
[353639276,1739976644889,-500.0,0.00016589,2]
[353639277,1739976644899,-151.0,0.000166,2]
[353639278,1739976644908,-500.0,0.00016689,2]
[353639279,1739976644918,-160.0,0.00016752,4]
[353639280,1739976644927,-481.26609424,0.0001676,2]
[353639281,1739976644937,-290.0,0.00016784,2]
[353639282,1739976644946,-290.0,0.00016784,2]
[353639283,1739976644956,-290.0,0.00016784,2]
[353639284,1739976644965,-290.0,0.00016784,2]
[353639285,1739976644975,-290.0,0.00016784,2]
[353639286,1739976644985,-290.0,0.00016784,2]
[353639287,1739976644995,-290.0,0.00016784,2]
[353639288,1739976645004,-290.0,0.00016784,2]
[353639289,1739976645014,-290.0,0.00016784,2]
[353639290,1739976645024,-290.0,0.00016784,2]
[353639291,1739976645033,-290.0,0.00016784,2]
[353639292,1739976645043,-290.0,0.00016784,2]
[353639293,1739976645052,-290.0,0.00016784,2]
[353639294,1739976645062,-290.0,0.00016784,2]
[353639295,1739976645072,-319.0,0.00016785,2]
[353639296,1739976645082,-319.0,0.00016785,2]
[353639297,1739976645091,-319.0,0.00016785,2]
[353639298,1739976645101,-319.0,0.00016785,2]
[353639299,1739976645110,-319.0,0.00016785,2]
[353639300,1739976645119,-319.0,0.00016785,2]
[353639301,1739976645129,-319.0,0.00016785,2]
[353639302,1739976645139,-319.0,0.00016785,2]
[353639303,1739976645149,-319.0,0.00016785,2]
[353639304,1739976645159,-319.0,0.00016785,2]
[353639305,1739976645168,-319.0,0.00016785,2]
[353639306,1739976645178,-319.0,0.00016785,2]
[353639307,1739976645187,-319.0,0.00016785,2]
[353639308,1739976645197,-319.0,0.00016785,2]
[353639310,1739976645206,-290.0,0.00016786,2]
[353639312,1739976645215,-290.0,0.00016786,2]
[353639314,1739976645225,-290.0,0.00016786,2]
[353639316,1739976645234,-290.0,0.00016786,2]
[353639318,1739976645243,-290.0,0.00016786,2]
[353639320,1739976645252,-290.0,0.00016786,2]
[353639321,1739976645263,-290.0,0.00016786,2]
[353639323,1739976645272,-290.0,0.00016786,2]
[353639325,1739976645282,-290.0,0.00016786,2]
[353639327,1739976645291,-290.0,0.00016786,2]
[353639329,1739976645301,-290.0,0.00016786,2]
[353639331,1739976645310,-290.0,0.00016786,2]
[353639333,1739976645319,-290.0,0.00016786,2]
[353639335,1739976645329,-290.0,0.00016786,2]
[353639337,1739976645338,-319.0,0.00016786,2]
[353639339,1739976645347,-319.0,0.00016786,2]
[353639343,1739976645356,-319.0,0.00016786,2]
[353639347,1739976645366,-319.0,0.00016786,2]
[353639349,1739976645375,-319.0,0.00016786,2]
[353639351,1739976645384,-319.0,0.00016786,2]
[353639353,1739976645393,-319.0,0.00016786,2]
[353639355,1739976645404,-319.0,0.00016786,2]
[353639357,1739976645414,-319.0,0.00016786,2]
[353639359,1739976645423,-319.0,0.00016786,2]
[353639360,1739976645432,-319.0,0.00016786,2]
[353639361,1739976645442,-319.0,0.00016786,2]
[353639362,1739976645451,-319.0,0.00016786,2]
[353639363,1739976645462,-319.0,0.00016786,2]
[353639364,1739976645473,-290.0,0.00016788,2]
[353639365,1739976645484,-290.0,0.00016788,2]
[353639366,1739976645493,-290.0,0.00016788,2]
[353639367,1739976645502,-290.0,0.00016788,2]
[353639368,1739976645513,-290.0,0.00016788,2]
[353639369,1739976645523,-290.0,0.00016788,2]
[353639370,1739976645532,-290.0,0.00016788,2]
[353639371,1739976645541,-290.0,0.00016788,2]
[353639372,1739976645551,-290.0,0.00016788,2]
[353639373,1739976645560,-290.0,0.00016788,2]
[353639374,1739976645570,-290.0,0.00016788,2]
[353639375,1739976645582,-290.0,0.00016788,2]
[353639376,1739976645591,-290.0,0.00016788,2]
[353639377,1739976645601,-290.0,0.00016788,2]
[353639378,1739976645611,-319.0,0.00016788,2]
[353639379,1739976645620,-319.0,0.00016788,2]
[353639380,1739976645630,-319.0,0.00016788,2]
[353639381,1739976645639,-319.0,0.00016788,2]
[353639382,1739976645648,-319.0,0.00016788,2]
[353639383,1739976645659,-319.0,0.00016788,2]
[353639384,1739976645668,-319.0,0.00016788,2]
[353639385,1739976645678,-319.0,0.00016788,2]
[353639386,1739976645687,-319.0,0.00016788,2]
[353639387,1739976645697,-319.0,0.00016788,2]
[353639388,1739976645706,-319.0,0.00016788,2]
[353639389,1739976645715,-319.0,0.00016788,2]
[353639390,1739976645724,-319.0,0.00016788,2]
[353639391,1739976645734,-319.0,0.00016788,2]
[353639392,1739976645743,-500.0,0.00016789,2]
[353639393,1739976645752,-290.0,0.0001679,2]
[353639394,1739976645762,-290.0,0.0001679,2]
[353639395,1739976645771,-290.0,0.0001679,2]
[353639396,1739976645780,-290.0,0.0001679,2]
[353639397,1739976645789,-290.0,0.0001679,2]
[353639398,1739976645798,-290.0,0.0001679,2]
[353639399,1739976645807,-290.0,0.0001679,2]
[353639400,1739976645816,-290.0,0.0001679,2]
[353639401,1739976645825,-290.0,0.0001679,2]
[353639402,1739976645835,-290.0,0.0001679,2]
[353639403,1739976645844,-290.0,0.0001679,2]
[353639404,1739976645854,-290.0,0.0001679,2]
[353639405,1739976645866,-290.0,0.0001679,2]
[353639406,1739976645875,-290.0,0.0001679,2]
[353639407,1739976645884,-319.0,0.0001679,2]
[353639408,1739976645894,-319.0,0.0001679,2]
[353639410,1739976645903,-319.0,0.0001679,2]
[353639411,1739976645912,-319.0,0.0001679,2]
[353639412,1739976645921,-319.0,0.0001679,2]
[353639413,1739976645931,-319.0,0.0001679,2]
[353639414,1739976645940,-319.0,0.0001679,2]
[353639415,1739976645949,-319.0,0.0001679,2]
[353639416,1739976645959,-319.0,0.0001679,2]
[353639417,1739976645968,-319.0,0.0001679,2]
[353639418,1739976645977,-319.0,0.0001679,2]
[353639419,1739976645986,-319.0,0.0001679,2]
[353639420,1739976645996,-319.0,0.0001679,2]
[353639421,1739976646005,-319.0,0.0001679,2]
[353639422,1739976646015,-11968.7550277,0.00016799,2]
[353639423,1739976646024,-151.0,0.000168,2]
[353639424,1739976646033,-290.0,0.00016801,2]
[353639425,1739976646042,-290.0,0.00016801,2]
[353639426,1739976646051,-290.0,0.00016801,2]
[353639427,1739976646060,-290.0,0.00016801,2]
[353639428,1739976646070,-290.0,0.00016801,2]
[353639429,1739976646078,-290.0,0.00016801,2]
[353639430,1739976646088,-290.0,0.00016801,2]
[353639431,1739976646097,-290.0,0.00016801,2]
[353639432,1739976646106,-290.0,0.00016801,2]
[353639433,1739976646115,-290.0,0.00016801,2]
[353639434,1739976646124,-290.0,0.00016801,2]
[353639435,1739976646136,-290.0,0.00016801,2]
[353639436,1739976646145,-290.0,0.00016801,2]
[353639437,1739976646154,-290.0,0.00016801,2]
[353639438,1739976646163,-319.0,0.00016801,2]
[353639439,1739976646173,-319.0,0.00016801,2]
[353639440,1739976646182,-319.0,0.00016801,2]
[353639441,1739976646191,-319.0,0.00016801,2]
[353639442,1739976646200,-319.0,0.00016801,2]
[353639443,1739976646209,-319.0,0.00016801,2]
[353639444,1739976646218,-319.0,0.00016801,2]
[353639445,1739976646227,-319.0,0.00016801,2]
[353639446,1739976646237,-319.0,0.00016801,2]
[353639447,1739976646245,-319.0,0.00016801,2]
[353639448,1739976646255,-319.0,0.00016801,2]
[353639449,1739976646266,-319.0,0.00016801,2]
[353639450,1739976646275,-319.0,0.00016801,2]
[353639452,1739976646285,-319.0,0.00016801,2]
[353639454,1739976646294,-500.0,0.00016889,2]
[353639456,1739976646303,-500.0,0.00016904,2]
[353639458,1739976646312,-500.0,0.00016989,2]
[353639460,1739976646322,-151.0,0.00017,2]
[353639462,1739976646331,-1000.0,0.00017,17]
[353639464,1739976646340,-500.0,0.00017089,2]
[353639466,1739976646349,-557.1188801,0.00017178,2]
[353639468,1739976646358,-557.1188801,0.00017178,2]
[353639470,1739976646369,-557.1188801,0.00017178,2]
[353639472,1739976646378,-557.1188801,0.00017178,2]
[353639474,1739976646388,-557.1188801,0.00017178,2]
[353639476,1739976646397,-557.1188801,0.00017178,2]
[353639478,1739976646406,-557.1188801,0.00017178,2]
[353639480,1739976646415,-557.1188801,0.00017178,2]
[353639482,1739976646425,-557.1188801,0.00017178,2]
[353639484,1739976646435,-557.1188801,0.00017178,2]
[353639486,1739976646444,-557.1188801,0.00017178,2]